fUSD/lending_fUSD_20250826
["ID","MTS","AMOUNT","RATE_DAILY","PERIOD"]
[381412601,1756187507549,-400.0,0.0001726,2]
[381412602,1756187507559,-400.0,0.0001726,2]
[381412603,1756187507568,-408.04,0.0001726,2]
[381412604,1756187507578,-400.0,0.0001726,2]
[381412605,1756187507587,-400.0,0.0001726,2]
[381412606,1756187507597,-400.0,0.0001726,2]
[381412607,1756187507610,-400.0,0.0001726,2]
[381412608,1756187507627,-1068.77,0.0001726,2]
[381412609,1756187507637,-400.0,0.0001726,2]
[381412610,1756187507647,-493.44,0.0001726,2]
[381412611,1756187507657,-400.0,0.0001726,2]
[381412612,1756187507667,-400.0,0.0001726,2]
[381412613,1756187507677,-400.0,0.0001726,2]
[381412614,1756187507687,-400.0,0.0001726,2]
[381412615,1756187507697,-400.0,0.0001726,2]
[381412616,1756187507707,-161.79,0.0001726,2]
[381412617,1756187507716,-400.0,0.0001726,2]
[381412618,1756187507725,-400.0,0.0001726,2]
[381412619,1756187507735,-400.0,0.0001726,2]
[381412620,1756187507744,-406.72,0.0001726,2]
[381412621,1756187507754,-400.0,0.0001726,2]
[381412622,1756187507763,-151.0,0.0001726,2]
[381412623,1756187507772,-151.0,0.0001726,2]
[381412624,1756187507782,-400.0,0.0001726,2]
[381412625,1756187507791,-400.0,0.0001726,2]
[381412626,1756187507802,-257.02,0.0001726,2]
[381412627,1756187507811,-400.0,0.0001726,2]
[381412628,1756187507821,-400.0,0.0001726,2]
[381412629,1756187507830,-400.0,0.0001726,2]
[381412630,1756187508023,-402.59,0.0001726,2]
[381412631,1756187508032,-1258.76,0.0001726,2]
[381412632,1756187508042,-1365.05,0.0001726,2]
[381412633,1756187508052,-400.0,0.0001726,2]
[381412634,1756187508061,-400.0,0.0001726,2]
[381412635,1756187508071,-400.0,0.0001726,2]
[381412636,1756187508081,-681.21,0.0001726,2]
[381412637,1756187508091,-1172.12,0.0001726,2]
[381412638,1756187508101,-400.0,0.0001726,2]
[381412639,1756187508111,-601.22,0.0001726,2]
[381412640,1756187508120,-400.0,0.0001726,2]
[381412641,1756187508129,-400.0,0.0001726,2]
[381412642,1756187508140,-400.0,0.0001726,2]
[381412643,1756187508150,-400.0,0.0001726,2]
[381412644,1756187508160,-360.732849,0.0001726,2]
[381412645,1756187508170,-151.0,0.0001726,2]
[381412646,1756187508179,-360.732849,0.0001726,2]
[381412647,1756187508190,-400.0,0.0001726,2]
[381412648,1756187508199,-465.5,0.0001726,2]
[381412649,1756187508209,-360.732849,0.0001726,2]
[381412650,1756187508219,-400.0,0.0001726,2]
[381412651,1756187508229,-400.0,0.0001726,2]
[381412652,1756187508239,-151.0,0.0001726,2]
[381412653,1756187508248,-466.48,0.0001726,2]
[381412654,1756187508258,-941.7,0.0001726,2]
[381412655,1756187508268,-496.44,0.0001726,2]
[381412656,1756187508278,-400.0,0.0001726,2]
[381412657,1756187508287,-400.0,0.0001726,2]
[381412658,1756187508298,-151.0,0.0001726,2]
[381412659,1756187508307,-1083.28,0.0001726,2]
[381412660,1756187508316,-360.732854,0.0001726,2]
[381412661,1756187508326,-400.0,0.0001726,2]
[381412662,1756187508336,-400.0,0.0001726,2]
[381412663,1756187508345,-932.75,0.0001726,2]
[381412664,1756187508356,-151.0,0.0001726,2]
[381412665,1756187508366,-400.0,0.0001726,2]
[381412666,1756187508377,-400.0,0.0001726,2]
[381412667,1756187508387,-234.7190828,0.0001726,2]
[381412668,1756187508396,-151.0,0.0001726,2]
[381412669,1756187508406,-400.0,0.0001726,2]
[381412670,1756187508417,-151.0,0.0001726,2]
[381412671,1756187508426,-400.0,0.0001726,2]
[381412672,1756187508436,-400.0,0.0001726,2]
[381412673,1756187508445,-400.0,0.0001726,2]
[381412674,1756187508455,-400.0,0.0001726,2]
[381412675,1756187508464,-400.0,0.0001726,2]
[381412676,1756187508473,-430.14,0.0001726,2]
[381412677,1756187508482,-400.0,0.0001726,2]
[381412678,1756187508492,-400.0,0.0001726,2]
[381412679,1756187508501,-490.22,0.0001726,2]
[381412680,1756187508510,-400.0,0.0001726,2]
[381412681,1756187508520,-400.0,0.0001726,2]
[381412682,1756187508529,-400.0,0.0001726,2]
[381412683,1756187508539,-593.27,0.0001726,2]
[381412684,1756187508550,-460.16,0.0001726,2]
[381412685,1756187508560,-1692.63,0.0001726,2]
[381412686,1756187508570,-400.0,0.0001726,2]
[381412687,1756187508580,-1258.34,0.0001726,2]
[381412688,1756187508590,-510.99,0.0001726,2]
[381412689,1756187508600,-799.25,0.0001726,2]
[381412690,1756187508613,-692.0,0.0001726,2]
[381412691,1756187508622,-400.0,0.0001726,2]
[381412692,1756187508631,-1052.4,0.0001726,2]
[381412693,1756187508640,-400.0,0.0001726,2]
[381412694,1756187508650,-2353.27,0.0001726,2]
[381412695,1756187508659,-400.0,0.0001726,2]
[381412696,1756187508669,-1186.62,0.0001726,2]
[381412697,1756187508678,-424.43,0.0001726,2]
[381412698,1756187508688,-1501.15,0.0001726,2]
[381412699,1756187508698,-400.0,0.0001726,2]
[381412700,1756187508708,-400.0,0.0001726,2]
[381412701,1756187508718,-400.0,0.0001726,2]
[381412702,1756187508727,-1083.08,0.0001726,2]
[381412703,1756187508737,-812.31,0.0001726,2]
[381412704,1756187508747,-1204.1,0.0001726,2]
[381412705,1756187508756,-400.0,0.0001726,2]
[381412706,1756187508766,-250.404867,0.0001726,2]
[381412707,1756187508775,-400.0,0.0001726,2]
[381412708,1756187508784,-403.09,0.0001726,2]
[381412709,1756187508795,-939.76,0.0001726,2]
[381412710,1756187508804,-681.06,0.0001726,2]
[381412711,1756187508814,-1757.48,0.0001726,2]
[381412712,1756187508824,-1245.51,0.0001726,2]
[381412713,1756187508833,-400.0,0.0001726,2]
[381412714,1756187508843,-854.07,0.0001726,2]
[381412715,1756187508852,-716.43,0.0001726,2]
[381412716,1756187508861,-1039.97,0.0001726,2]
[381412717,1756187508871,-726.63,0.0001726,2]
[381412718,1756187508880,-400.0,0.0001726,2]
[381412719,1756187508890,-1100.46,0.0001726,2]
[381412720,1756187508900,-640.38,0.0001726,2]
[381412721,1756187508910,-813.95,0.0001726,2]
[381412722,1756187508920,-151.0,0.0001726,2]
[381412723,1756187508930,-400.0,0.0001726,2]
[381412724,1756187508940,-1334.3,0.0001726,2]
[381412725,1756187508950,-785.3,0.0001726,2]
[381412726,1756187508959,-933.55,0.0001726,2]
[381412727,1756187508969,-452.06,0.0001726,2]
[381412728,1756187508978,-400.0,0.0001726,2]
[381412729,1756187508988,-151.0,0.0001726,2]
[381412730,1756187508998,-1107.69,0.0001726,2]
[381412731,1756187509007,-400.0,0.0001726,2]
[381412732,1756187509017,-151.0,0.0001726,2]
[381412733,1756187509027,-1314.36,0.0001726,2]
[381412734,1756187509036,-151.0,0.0001726,2]
[381412735,1756187509046,-1567.91,0.0001726,2]
[381412736,1756187509056,-151.0,0.0001726,2]
[381412737,1756187509065,-151.0,0.0001726,2]
[381412738,1756187509076,-151.949429,0.0001726,2]
[381412739,1756187509086,-602.69,0.0001726,2]
[381412740,1756187509095,-400.0,0.0001726,2]
[381412741,1756187509105,-151.0,0.0001726,2]
[381412742,1756187509115,-400.0,0.0001726,2]
[381412743,1756187509125,-151.0,0.0001726,2]
[381412744,1756187509135,-400.0,0.0001726,2]
[381412745,1756187509144,-400.0,0.0001726,2]
[381412746,1756187509154,-151.0,0.0001726,2]
[381412747,1756187509164,-151.0,0.0001726,2]
[381412748,1756187509173,-1230.75,0.0001726,2]
[381412749,1756187509183,-151.0,0.0001726,2]
[381412750,1756187509193,-494.45,0.0001726,2]
[381412751,1756187509203,-400.0,0.0001726,2]
[381412752,1756187509213,-400.0,0.0001726,2]
[381412753,1756187509222,-932.14,0.0001726,2]
[381412754,1756187509232,-916.56,0.0001726,2]
[381412755,1756187509242,-846.18,0.0001726,2]
[381412756,1756187509251,-400.0,0.0001726,2]
[381412757,1756187509261,-400.0,0.0001726,2]
[381412758,1756187509271,-400.0,0.0001726,2]
[381412759,1756187509281,-400.0,0.0001726,2]
[381412760,1756187509291,-400.0,0.0001726,2]
[381412761,1756187509300,-873.93,0.0001726,2]
[381412762,1756187509310,-465.57,0.0001726,2]
[381412763,1756187509320,-400.0,0.0001726,2]
[381412764,1756187509329,-587.99,0.0001726,2]
[381412765,1756187509339,-232.41,0.0001726,2]
[381412766,1756187509350,-400.0,0.0001726,2]
[381412767,1756187509360,-1445.75,0.0001726,2]
[381412768,1756187509370,-727.77,0.0001726,2]
[381412769,1756187509379,-400.0,0.0001726,2]
[381412770,1756187509389,-852.08,0.0001726,2]
[381412771,1756187509399,-598.8,0.0001726,2]
[381412772,1756187509409,-400.0,0.0001726,2]
[381412773,1756187509419,-400.0,0.0001726,2]
[381412774,1756187509428,-400.0,0.0001726,2]
[381412775,1756187509438,-973.16,0.0001726,2]
[381412776,1756187509448,-999.47,0.0001726,2]
[381412777,1756187509457,-629.23,0.0001726,2]
[381412778,1756187509467,-579.22,0.0001726,2]
[381412779,1756187509478,-400.0,0.0001726,2]
[381412780,1756187509487,-400.0,0.0001726,2]
[381412781,1756187509497,-805.95,0.0001726,2]
[381412782,1756187509507,-400.0,0.0001726,2]
[381412783,1756187509517,-400.0,0.0001726,2]
[381412784,1756187509527,-1354.95,0.0001726,2]
[381412785,1756187509537,-400.0,0.0001726,2]
[381412786,1756187509546,-1163.52,0.0001726,2]
[381412787,1756187509556,-400.0,0.0001726,2]
[381412788,1756187509566,-1002.56,0.0001726,2]
[381412789,1756187509575,-400.0,0.0001726,2]
[381412790,1756187509584,-1628.22,0.0001726,2]
[381412791,1756187509593,-400.0,0.0001726,2]
[381412792,1756187509607,-400.0,0.0001726,2]
[381412793,1756187509617,-400.0,0.0001726,2]
[381412794,1756187509626,-493.68,0.0001726,2]
[381412795,1756187509636,-400.0,0.0001726,2]
[381412796,1756187509648,-1193.33,0.0001726,2]
[381412797,1756187509657,-7048.35,0.0001726,2]
[381412798,1756187509668,-400.0,0.0001726,2]
[381412799,1756187509678,-400.0,0.0001726,2]
[381412800,1756187509689,-151.0,0.0001726,2]
[381412801,1756187509699,-1293.64,0.0001726,2]
[381412802,1756187509708,-734.28,0.0001726,2]
[381412803,1756187509717,-1150.62,0.0001726,2]
[381412804,1756187509727,-966.45,0.0001726,2]
[381412805,1756187509738,-400.0,0.0001726,2]
[381412806,1756187509749,-712.26,0.0001726,2]
[381412807,1756187509759,-1129.82,0.0001726,2]
[381412808,1756187509768,-1065.75,0.0001726,2]
[381412809,1756187509778,-745.67,0.0001726,2]
[381412810,1756187509787,-719.16,0.0001726,2]
[381412811,1756187509797,-400.0,0.0001726,2]
[381412812,1756187509807,-977.62,0.0001726,2]
[381412813,1756187509816,-593.98,0.0001726,2]
[381412814,1756187509826,-340.20868615,0.0001726,2]
[381412815,1756187509837,-682.16,0.0001726,2]
[381412816,1756187509847,-151.0,0.0001726,2]
[381412817,1756187509856,-400.0,0.0001726,2]
[381412818,1756187509866,-151.0,0.0001726,2]
[381412819,1756187509875,-151.0,0.0001726,2]
[381412820,1756187509884,-400.0,0.0001726,2]
[381412821,1756187509895,-259.121161,0.0001726,2]
[381412822,1756187509905,-400.0,0.0001726,2]
[381412823,1756187509916,-522.11,0.0001726,2]
[381412824,1756187509928,-903.77,0.0001726,2]
[381412825,1756187509941,-671.23,0.0001726,2]
[381412826,1756187509951,-400.0,0.0001726,2]
[381412827,1756187509963,-604.74,0.0001726,2]
[381412828,1756187509974,-1282.34,0.0001726,2]
[381412829,1756187509987,-400.0,0.0001726,2]
[381412830,1756187509997,-400.0,0.0001726,2]
[381412831,1756187510007,-400.0,0.0001726,2]
[381412832,1756187510017,-559.92,0.0001726,2]
[381412833,1756187510026,-685.44,0.0001726,2]
[381412834,1756187510035,-488.96,0.0001726,2]
[381412835,1756187510044,-1300.41,0.0001726,2]
[381412836,1756187510054,-907.47,0.0001726,2]
[381412837,1756187510063,-614.94,0.0001726,2]
[381412838,1756187510072,-151.0,0.0001726,2]
[381412839,1756187510084,-400.0,0.0001726,2]
[381412840,1756187510094,-400.0,0.0001726,2]
[381412841,1756187510103,-502.11,0.0001726,2]
[381412842,1756187510112,-1002.01,0.0001726,2]
[381412843,1756187510121,-780.96,0.0001726,2]
[381412844,1756187510133,-151.0,0.0001726,2]
[381412845,1756187510144,-840.61,0.0001726,2]
[381412846,1756187510155,-400.0,0.0001726,2]
[381412847,1756187510166,-151.0,0.0001726,2]
[381412848,1756187510176,-425.77,0.0001726,2]
[381412849,1756187510187,-589.71,0.0001726,2]
[381412850,1756187510569,-1458.48,0.0001726,2]
[381412851,1756187510589,-400.0,0.0001726,2]
[381412852,1756187510600,-151.0,0.0001726,2]
[381412853,1756187510613,-522.78,0.0001726,2]
[381412854,1756187510624,-581.34,0.0001726,2]
[381412855,1756187510635,-1107.97,0.0001726,2]
[381412856,1756187510646,-1080.95,0.0001726,2]
[381412857,1756187510656,-845.61,0.0001726,2]
[381412858,1756187510666,-151.0,0.0001726,2]
[381412859,1756187510678,-559.63,0.0001726,2]
[381412860,1756187510688,-917.4,0.0001726,2]
[381412861,1756187510698,-848.81,0.0001726,2]
[381412862,1756187510709,-1020.92,0.0001726,2]
[381412863,1756187510721,-400.0,0.0001726,2]
[381412864,1756187510731,-184.374765,0.0001726,2]
[381412865,1756187510740,-712.36,0.0001726,2]
[381412866,1756187510751,-471.44,0.0001726,2]
[381412867,1756187510768,-1135.23,0.0001726,2]
[381412868,1756187510787,-753.28,0.0001726,2]
[381412869,1756187510801,-184.374765,0.0001726,2]
[381412870,1756187510811,-994.58,0.0001726,2]
[381412871,1756187510820,-483.72,0.0001726,2]
[381412872,1756187510833,-1077.2,0.0001726,2]
[381412873,1756187510843,-184.374765,0.0001726,2]
[381412874,1756187510854,-1412.73,0.0001726,2]
[381412875,1756187510863,-644.9,0.0001726,2]
[381412876,1756187510872,-691.8,0.0001726,2]
[381412877,1756187510882,-620.21,0.0001726,2]
[381412878,1756187510893,-400.0,0.0001726,2]
[381412879,1756187510904,-337.798632,0.0001726,2]
[381412880,1756187510914,-337.798632,0.0001726,2]
[381412881,1756187510924,-400.0,0.0001726,2]
[381412882,1756187510934,-184.374765,0.0001726,2]
[381412883,1756187510946,-337.798632,0.0001726,2]
[381412884,1756187510958,-400.0,0.0001726,2]
[381412885,1756187510968,-400.0,0.0001726,2]
[381412886,1756187510978,-400.0,0.0001726,2]
[381412887,1756187510988,-400.0,0.0001726,2]
[381412888,1756187510999,-400.0,0.0001726,2]
[381412889,1756187511009,-1015.77,0.0001726,2]
[381412890,1756187511018,-1305.09,0.0001726,2]
[381412891,1756187511027,-468.36,0.0001726,2]
[381412892,1756187511037,-444.72,0.0001726,2]
[381412893,1756187511048,-705.71,0.0001726,2]
[381412894,1756187511058,-845.91,0.0001726,2]
[381412895,1756187511067,-1337.46,0.0001726,2]
[381412896,1756187511079,-545.77,0.0001726,2]
[381412897,1756187511090,-400.0,0.0001726,2]
[381412898,1756187511099,-400.0,0.0001726,2]
[381412899,1756187511112,-151.0,0.0001726,2]
[381412900,1756187511121,-151.0,0.0001726,2]
[381412901,1756187511132,-880.46,0.0001726,2]
[381412902,1756187511141,-400.0,0.0001726,2]
[381412903,1756187511152,-400.0,0.0001726,2]
[381412904,1756187511162,-629.36,0.0001726,2]
[381412905,1756187511171,-151.0,0.0001726,2]
[381412906,1756187511181,-696.49,0.0001726,2]
[381412907,1756187511191,-1307.64,0.0001726,2]
[381412908,1756187511200,-400.0,0.0001726,2]
[381412909,1756187511210,-400.0,0.0001726,2]
[381412910,1756187511220,-862.96,0.0001726,2]
[381412911,1756187511229,-447.3,0.0001726,2]
[381412912,1756187511239,-400.0,0.0001726,2]
[381412913,1756187511248,-698.91,0.0001726,2]
[381412914,1756187511258,-657.69,0.0001726,2]
[381412915,1756187511268,-622.1,0.0001726,2]
[381412916,1756187511277,-1017.46,0.0001726,2]
[381412917,1756187511287,-400.0,0.0001726,2]
[381412918,1756187511298,-869.42,0.0001726,2]
[381412919,1756187511307,-647.58,0.0001726,2]
[381412920,1756187511317,-539.19,0.0001726,2]
[381412921,1756187511326,-400.0,0.0001726,2]
[381412922,1756187511336,-400.0,0.0001726,2]
[381412923,1756187511346,-1075.5,0.0001726,2]
[381412924,1756187511355,-400.0,0.0001726,2]
[381412925,1756187511364,-400.0,0.0001726,2]
[381412926,1756187511374,-400.0,0.0001726,2]
[381412927,1756187511383,-400.0,0.0001726,2]
[381412928,1756187511393,-151.0,0.0001726,2]
[381412929,1756187511403,-863.32,0.0001726,2]
[381412930,1756187511412,-4618.2,0.0001726,2]
[381412931,1756187511422,-1505.52,0.0001726,2]
[381412932,1756187511431,-400.0,0.0001726,2]
[381412933,1756187511441,-400.0,0.0001726,2]
[381412934,1756187511451,-400.0,0.0001726,2]
[381412935,1756187511460,-400.0,0.0001726,2]
[381412936,1756187511470,-647.78,0.0001726,2]
[381412937,1756187511479,-405.01,0.0001726,2]
[381412938,1756187511489,-610.36,0.0001726,2]
[381412939,1756187511498,-436.65,0.0001726,2]
[381412940,1756187511508,-400.0,0.0001726,2]
[381412941,1756187511518,-400.0,0.0001726,2]
[381412942,1756187511528,-1087.43,0.0001726,2]
[381412943,1756187511537,-400.0,0.0001726,2]
[381412944,1756187511547,-446.2,0.0001726,2]
[381412945,1756187511557,-505.61,0.0001726,2]
[381412946,1756187511567,-585.97,0.0001726,2]
[381412947,1756187511576,-846.95,0.0001726,2]
[381412948,1756187511586,-1380.42,0.0001726,2]
[381412949,1756187511596,-1767.76,0.0001726,2]
[381412950,1756187511606,-735.71,0.0001726,2]
[381412951,1756187511618,-1739.731729,0.0001726,2]
[381412952,1756187511627,-557.42,0.0001726,2]
[381412953,1756187511637,-400.0,0.0001726,2]
[381412954,1756187511646,-1739.731729,0.0001726,2]
[381412955,1756187511657,-995.28,0.0001726,2]
[381412956,1756187511666,-433.81,0.0001726,2]
[381412957,1756187511676,-368.141097,0.0001726,2]
[381412958,1756187511687,-1739.731729,0.0001726,2]
[381412959,1756187511696,-1761.72,0.0001726,2]
[381412960,1756187511706,-368.141097,0.0001726,2]
[381412961,1756187511715,-459.1,0.0001726,2]
[381412962,1756187511724,-1739.731729,0.0001726,2]
[381412963,1756187511733,-151.0,0.0001726,2]
[381412964,1756187511743,-652.4,0.0001726,2]
[381412965,1756187511752,-400.0,0.0001726,2]
[381412966,1756187511762,-368.141097,0.0001726,2]
[381412967,1756187511772,-1179.57,0.0001726,2]
[381412968,1756187511781,-721.15,0.0001726,2]
[381412969,1756187511790,-663.26,0.0001726,2]
[381412970,1756187511800,-368.141097,0.0001726,2]
[381412971,1756187511809,-400.0,0.0001726,2]
[381412972,1756187511818,-435.62,0.0001726,2]
[381412973,1756187511828,-765.94,0.0001726,2]
[381412974,1756187511837,-1342.44,0.0001726,2]
[381412975,1756187511847,-1064.56,0.0001726,2]
[381412976,1756187511856,-151.0,0.0001726,2]
[381412977,1756187511865,-1572.36,0.0001726,2]
[381412978,1756187511874,-848.28,0.0001726,2]
[381412979,1756187511883,-636.48,0.0001726,2]
[381412980,1756187511893,-151.0,0.0001726,2]
[381412981,1756187511902,-975.36,0.0001726,2]
[381412982,1756187511911,-151.0,0.0001726,2]
[381412983,1756187511920,-1316.75,0.0001726,2]
[381412984,1756187511929,-151.0,0.0001726,2]
[381412985,1756187511938,-1181.21,0.0001726,2]
[381412986,1756187511947,-151.0,0.0001726,2]
[381412987,1756187511956,-217.346054,0.0001726,2]
[381412988,1756187511966,-400.0,0.0001726,2]
[381412989,1756187511975,-151.0,0.0001726,2]
[381412990,1756187511985,-400.0,0.0001726,2]
[381412991,1756187511994,-217.346054,0.0001726,2]
[381412992,1756187512004,-151.0,0.0001726,2]
[381412993,1756187512013,-151.0,0.0001726,2]
[381412994,1756187512023,-400.0,0.0001726,2]
[381412995,1756187512033,-573.6,0.0001726,2]
[381412996,1756187512043,-151.0,0.0001726,2]
[381412997,1756187512052,-217.346054,0.0001726,2]
[381412998,1756187512063,-151.0,0.0001726,2]
[381412999,1756187512072,-217.346059,0.0001726,2]
[381413000,1756187512082,-416.55,0.0001726,2]
[381413001,1756187512092,-400.0,0.0001726,2]
[381413002,1756187512102,-151.0,0.0001726,2]
[381413003,1756187512112,-847.69,0.0001726,2]
[381413004,1756187512122,-412.69,0.0001726,2]
[381413005,1756187512132,-529.42,0.0001726,2]
[381413006,1756187512142,-1089.96,0.0001726,2]
[381413007,1756187512152,-465.3,0.0001726,2]
[381413008,1756187512161,-1070.55,0.0001726,2]
[381413009,1756187512173,-877.92,0.0001726,2]
[381413010,1756187512182,-151.0,0.0001726,2]
[381413011,1756187512192,-1241.47,0.0001726,2]
[381413012,1756187512201,-1141.83,0.0001726,2]
[381413013,1756187512211,-691.3,0.0001726,2]
[381413014,1756187512220,-911.71,0.0001726,2]
[381413015,1756187512230,-507.39,0.0001726,2]
[381413016,1756187512240,-596.64,0.0001726,2]
[381413017,1756187512250,-400.0,0.0001726,2]
[381413018,1756187512259,-400.0,0.0001726,2]
[381413019,1756187512269,-400.0,0.0001726,2]
[381413020,1756187512279,-966.54,0.0001726,2]
[381413021,1756187512289,-400.0,0.0001726,2]
[381413022,1756187512298,-668.03,0.0001726,2]
[381413023,1756187512308,-1032.82,0.0001726,2]
[381413024,1756187512317,-683.92,0.0001726,2]
[381413025,1756187512326,-708.23,0.0001726,2]
[381413026,1756187512336,-575.42,0.0001726,2]
[381413027,1756187512346,-486.66,0.0001726,2]
[381413028,1756187512357,-400.0,0.0001726,2]
[381413029,1756187512366,-400.0,0.0001726,2]
[381413030,1756187512376,-876.59,0.0001726,2]
[381413031,1756187512387,-718.26,0.0001726,2]
[381413032,1756187512397,-267.43846579,0.0001726,2]
[381413033,1756187512406,-400.0,0.0001726,2]
[381413034,1756187512415,-680.05,0.0001726,2]
[381413035,1756187512425,-400.0,0.0001726,2]
[381413036,1756187512435,-1692.55,0.0001726,2]
[381413037,1756187512445,-584.57,0.0001726,2]
[381413038,1756187512455,-1241.85,0.0001726,2]
[381413039,1756187512466,-831.34,0.0001726,2]
[381413040,1756187512477,-1043.8,0.0001726,2]
[381413041,1756187512487,-400.0,0.0001726,2]
[381413042,1756187512498,-1006.61,0.0001726,2]
[381413043,1756187512508,-1144.57,0.0001726,2]
[381413044,1756187512519,-660.37,0.0001726,2]
[381413045,1756187512530,-1580.64,0.0001726,2]
[381413046,1756187512539,-1498.18,0.0001726,2]
[381413047,1756187512549,-400.0,0.0001726,2]
[381413048,1756187512559,-571.25,0.0001726,2]
[381413049,1756187512569,-674.59,0.0001726,2]
[381413050,1756187512578,-400.0,0.0001726,2]
[381413051,1756187512588,-641.19,0.0001726,2]
[381413052,1756187512597,-1017.63,0.0001726,2]
[381413053,1756187512609,-1266.46,0.0001726,2]
[381413054,1756187512619,-400.0,0.0001726,2]
[381413055,1756187512628,-1019.68,0.0001726,2]
[381413056,1756187512638,-400.0,0.0001726,2]
[381413057,1756187512647,-1100.75,0.0001726,2]
[381413058,1756187512657,-400.0,0.0001726,2]
[381413059,1756187512667,-152.344187,0.0001726,2]
[381413060,1756187512677,-151.0,0.0001726,2]
[381413061,1756187512687,-400.0,0.0001726,2]
[381413062,1756187512697,-197.46,0.0001726,2]
[381413063,1756187512707,-400.0,0.0001726,2]
[381413064,1756187512717,-867.81,0.0001726,2]
[381413065,1756187512730,-1521.49,0.0001726,2]
[381413066,1756187512739,-400.0,0.0001726,2]
[381413067,1756187512750,-400.0,0.0001726,2]
[381413068,1756187512760,-1115.24,0.0001726,2]
[381413069,1756187512769,-1267.69,0.0001726,2]
[381413070,1756187512779,-400.0,0.0001726,2]
[381413071,1756187512789,-400.0,0.0001726,2]
[381413072,1756187512799,-997.81,0.0001726,2]
[381413073,1756187512809,-1218.74,0.0001726,2]
[381413074,1756187512818,-1302.16,0.0001726,2]
[381413075,1756187512828,-400.0,0.0001726,2]
[381413076,1756187512837,-400.0,0.0001726,2]
[381413077,1756187512847,-400.0,0.0001726,2]
[381413078,1756187512856,-695.05,0.0001726,2]
[381413079,1756187512866,-400.0,0.0001726,2]
[381413080,1756187512876,-723.78,0.0001726,2]
[381413081,1756187512885,-1512.48,0.0001726,2]
[381413082,1756187512894,-650.13,0.0001726,2]
[381413083,1756187512903,-400.0,0.0001726,2]
[381413084,1756187512912,-804.19,0.0001726,2]
[381413085,1756187512922,-572.82,0.0001726,2]
[381413086,1756187512931,-1191.41,0.0001726,2]
[381413087,1756187512940,-400.0,0.0001726,2]
[381413088,1756187512950,-866.06,0.0001726,2]
[381413089,1756187512959,-400.0,0.0001726,2]
[381413090,1756187512968,-400.0,0.0001726,2]
[381413091,1756187512977,-642.61,0.0001726,2]
[381413092,1756187513092,-760.93,0.0001726,2]
[381413093,1756187513103,-632.76,0.0001726,2]
[381413094,1756187513113,-400.0,0.0001726,2]
[381413095,1756187513123,-945.69,0.0001726,2]
[381413096,1756187513132,-927.96,0.0001726,2]
[381413097,1756187513141,-743.96,0.0001726,2]
[381413098,1756187513151,-400.0,0.0001726,2]
[381413099,1756187513160,-1291.3,0.0001726,2]
[381413100,1756187513169,-667.668985,0.0001726,2]